bitfinex/quotes_ETHUSD_20240721
["timestamp","ask_amount","ask_price","bid_price","bid_amount"]
[1721587108721,2.3643,3479.2,3477.1,2.3611]
[1721587108722,0.59963474,3479.6,3478.3,2.87491]
[1721587108920,2.592,3479.3,3478.0,2.8752]
[1721587109135,0.07187952,3479.2,3477.8,2.87537]
[1721587109332,0.07187952,3479.2,3477.3,3.0]
[1721587109540,3.026,3479.0,3478.2,2.87501]
[1721587109703,22.946,3478.9,3478.3,2.87496]
[1721587109903,22.946,3478.9,3477.9,2.87525]
[1721587109904,19.92,3478.9,3477.5,0.05749907]
[1721587110109,2.3643,3479.8,3477.5,0.05749907]
[1721587110110,19.92,3478.8,3478.6,2.87466]
[1721587110322,19.92,3479.5,3478.4,2.87485]
[1721587110522,19.92,3479.5,3478.7,2.87463]
[1721587110523,3.026,3479.4,3478.7,2.87463]
[1721587110931,3.026,3479.4,3478.4,2.87486]
[1721587110932,3.026,3479.4,3478.8,2.87455]
[1721587111117,3.026,3479.4,3477.6,1.16994991]
[1721587111118,3.026,3479.4,3478.3,2.87494]
[1721587111318,19.92,3479.5,3478.1,2.87508]
[1721587111319,3.026,3479.2,3478.1,2.87508]
[1721587111518,3.026,3479.2,3478.4,2.87487]
[1721587111719,3.026,3479.2,3478.2,0.55]
[1721587111924,3.026,3479.2,3478.4,2.87487]
[1721587112339,3.026,3479.2,3477.3,3.0]
[1721587112340,3.026,3478.6,3476.2,2.87669]
[1721587112670,2.592,3478.7,3478.3,0.1]
[1721587112671,3.026,3478.4,3478.3,0.1]
[1721587113385,6.026,3478.4,3478.3,0.1]
[1721587114550,6.026,3478.4,3476.3,2.592]
[1721587114551,8.3903,3478.4,3476.5,2.87644]
[1721587114751,8.3903,3478.4,3475.0,4.0681284]
[1721587114752,4.9516,3477.6,3474.9,7.83083]
[1721587114923,4.9516,3477.6,3475.4,2.87735]
[1721587114924,3.026,3477.4,3475.4,2.87735]
[1721587115129,3.026,3477.4,3476.3,2.87661]
[1721587115130,3.09791498,3477.4,3476.3,2.87661]
[1721587115328,3.026,3477.2,3476.1,2.87677]
[1721587115561,3.026,3477.2,3475.7,2.87706]
[1721587115562,3.026,3477.0,3475.4,2.87732]
[1721587115773,3.09792469,3477.0,3475.4,2.87732]
[1721587115927,3.026,3476.8,3475.5,0.33283375]
[1721587116389,3.026,3476.8,3475.3,0.4510175]
[1721587116538,3.026,3476.8,3475.5,2.87726]
[1721587116539,0.07192466,3476.7,3475.5,2.87726]
[1721587116867,3.026,3476.8,3475.3,0.4510175]
[1721587116868,3.026,3476.8,3475.6,2.87719]
[1721587117025,3.026,3476.8,3474.9,2.3611]
[1721587117026,3.026,3476.8,3475.7,2.87708]
[1721587117352,3.026,3476.8,3474.9,5.23887]
[1721587117353,3.026,3476.8,3475.5,2.87723]
[1721587117557,3.0,3476.9,3475.9,2.87694]
[1721587117558,3.026,3476.6,3475.9,2.87694]
[1721587117767,19.92,3476.5,3475.5,0.05753512]
[1721587117966,19.92,3476.5,3476.4,5.75306]
[1721587118172,9.4056,3477.6,3476.4,0.55]
[1721587118173,19.92,3477.5,3476.4,0.55]
[1721587118372,19.92,3477.5,3476.8,2.87619]
[1721587118684,3.09790531,3477.4,3476.0,5.23794]
[1721587119023,0.07191356,3477.3,3476.0,2.87684]
[1721587119141,0.07191441,3477.2,3476.3,2.87661]
[1721587119347,3.026,3477.4,3476.1,0.55]
[1721587119348,3.026,3477.4,3476.4,2.87653]
[1721587119588,19.92,3477.5,3477.0,2.876]
[1721587119768,19.92,3477.5,3476.8,2.8762]
[1721587120081,19.92,3477.5,3476.2,2.87667]
[1721587120082,19.92,3477.5,3476.6,2.87637]
[1721587120284,0.07189926,3477.4,3475.4,2.3611]
[1721587120492,0.07189926,3477.4,3476.3,2.8766]
[1721587120493,19.92,3477.3,3476.3,2.8766]
[1721587120782,3.026,3477.2,3476.4,2.87653]
[1721587120942,19.92,3477.3,3475.5,3.0]
[1721587121142,3.56156925,3478.4,3475.9,2.592]
[1721587121143,19.92,3478.1,3475.9,2.592]
[1721587121385,2.66211714,3478.4,3476.4,2.87651]
[1721587121386,0.07190363,3478.0,3476.4,2.87651]
[1721587121631,0.07190363,3478.0,3475.6,3.79531]
[1721587121632,0.07190363,3478.0,3476.5,2.87643]
[1721587121909,0.07190363,3478.0,3475.9,2.87691]
[1721587121910,3.026,3477.5,3475.9,2.87691]
[1721587122065,3.026,3477.3,3475.4,2.3611]
[1721587122268,2.3692,3477.6,3474.8,0.45108516]
[1721587122269,3.026,3477.1,3475.5,2.87727]
[1721587122497,3.026,3477.1,3474.8,5.67211516]
[1721587122498,0.07192445,3477.0,3475.6,2.87716]
[1721587122678,3.026,3476.9,3475.6,2.87716]
[1721587122883,0.07192443,3476.8,3475.7,2.8771]
[1721587123166,3.09792443,3476.7,3475.7,2.8771]
[1721587123372,3.026,3476.5,3475.7,2.8771]
[1721587123570,19.92,3476.4,3475.8,2.87703]
[1721587123933,3.026,3476.2,3474.8,0.45108516]
[1721587124088,2.3692,3476.3,3475.0,2.87767]
[1721587124089,3.026,3476.0,3475.0,2.87767]
[1721587124291,19.92,3476.1,3474.7,0.1468901]
[1721587124803,19.92,3476.1,3475.4,2.87734]
[1721587124975,19.92,3476.1,3474.7,0.1468901]
[1721587125178,19.92,3476.1,3475.6,2.87719]
[1721587125398,3.026,3476.3,3475.6,2.87719]
[1721587125596,19.92,3476.4,3474.7,0.1468901]
[1721587125597,19.92,3476.2,3474.7,0.1468901]
[1721587125797,19.92,3476.4,3476.2,2.87668]
[1721587126017,19.92,3477.4,3476.4,2.87652]
[1721587126240,19.92,3477.4,3475.6,2.87719]
[1721587126377,3.026,3477.2,3476.1,2.87672]
[1721587126717,0.29782908,3477.3,3476.0,2.87686]
[1721587126718,3.026,3477.0,3476.0,2.87686]
[1721587127075,3.026,3477.0,3475.7,3.42709]
[1721587127315,2.88982908,3477.3,3475.3,2.3432]
[1721587127316,3.026,3476.8,3475.6,2.8772]
[1721587127477,2.88982908,3477.3,3475.5,2.87727]
[1721587127478,3.026,3476.6,3475.5,2.87727]
[1721587127817,3.026,3476.6,3474.7,2.4900901]
[1721587127818,5.618,3476.2,3474.7,0.1468901]
[1721587128035,3.026,3476.0,3475.0,2.87762]
[1721587128510,6.026,3475.9,3474.7,0.1468901]
[1721587128729,3.026,3475.9,3474.7,0.1468901]
[1721587129011,3.026,3475.7,3474.7,0.1468901]
[1721587129275,3.026,3475.5,3474.7,0.1468901]
[1721587130065,3.026,3475.5,3474.7,3.0248301]
[1721587130268,5.8794,3476.2,3474.9,2.87778]
[1721587130269,3.026,3476.1,3474.9,2.87778]
[1721587130470,3.026,3476.1,3474.7,0.1468901]
[1721587130471,6.026,3476.1,3474.7,0.1468901]
[1721587130633,3.026,3476.1,3475.1,2.87759]
[1721587130832,3.026,3476.3,3475.6,2.87715]
[1721587131028,3.026,3476.3,3475.1,0.287759]
[1721587131227,3.026,3476.3,3474.7,2.4900901]
[1721587131228,3.026,3476.2,3474.8,2.87783]
[1721587131425,3.026,3476.0,3474.7,0.1468901]
[1721587131671,3.026,3475.6,3474.7,0.1468901]
[1721587131893,2.592,3475.7,3474.7,0.1468901]
[1721587131894,3.026,3475.3,3474.7,0.1468901]
[1721587132166,3.026,3475.1,3474.7,0.1468901]
[1721587132371,4.292,3475.7,3474.7,0.1468901]
[1721587132372,0.59963474,3476.4,3474.7,0.1468901]
[1721587132732,2.3692,3476.5,3474.7,0.1468901]
[1721587133142,2.3692,3476.5,3475.1,2.87758]
[1721587133373,3.026,3476.4,3474.7,0.1468901]
[1721587133578,3.026,3476.4,3475.4,2.87736]
[1721587133787,2.3692,3476.5,3475.1,2.87758]
[1721587133788,3.026,3476.2,3475.1,2.87758]
[1721587133991,3.376,3475.9,3475.1,2.87758]
[1721587134141,3.376,3475.9,3475.0,2.87767]
[1721587134142,3.026,3475.9,3475.0,2.87767]
[1721587134348,3.026,3475.9,3475.3,2.87744]
[1721587134696,3.026,3475.9,3474.8,0.55]
[1721587134851,6.026,3476.2,3474.8,0.55]
[1721587135184,6.026,3476.2,3475.7,2.87705]
[1721587136069,6.026,3476.2,3475.8,2.87702]
[1721587136241,19.92,3476.1,3475.9,2.87691]
[1721587136643,19.92,3476.1,3476.0,2.87686]
[1721587136841,19.92,3476.1,3476.0,5.75372]
[1721587137100,19.92,3476.1,3476.0,2.87686]
[1721587137384,19.92,3476.1,3476.0,5.75372]
[1721587137685,19.92,3476.1,3476.0,6.879092]
[1721587138280,19.92,3476.1,3476.0,9.755952]
[1721587138584,19.92,3477.2,3477.1,5.7519]
[1721587139150,19.92,3477.2,3477.1,2.87595]
[1721587139897,19.92,3477.2,3477.1,5.7519]
[1721587140400,19.92,3477.2,3477.1,2.87595]
[1721587140707,19.92,3477.2,3476.8,2.87618]
[1721587140890,3.026,3477.1,3476.6,2.87636]
[1721587141059,3.026,3477.1,3476.8,2.8762]
[1721587141759,19.92,3477.0,3476.8,5.7524]
[1721587141962,19.92,3477.0,3476.8,8.6286]
[1721587142199,19.92,3477.0,3476.8,5.7524]
[1721587142894,19.92,3477.0,3476.8,2.8762]
[1721587143064,19.92,3477.0,3476.4,2.87651]
[1721587143065,3.026,3477.0,3476.4,2.87651]
[1721587143412,3.026,3477.0,3476.2,2.87663]
[1721587143608,3.026,3477.0,3475.7,2.87707]
[1721587143901,3.026,3477.0,3475.6,5.22039]
[1721587144195,2.287,3477.2,3475.6,5.22039]
[1721587144196,3.026,3477.1,3476.4,2.87653]
[1721587144415,3.026,3476.9,3475.8,2.87701]
[1721587144572,3.026,3476.9,3476.6,2.87637]
[1721587145202,3.026,3477.2,3476.0,2.87685]
[1721587145418,2.287,3477.7,3476.1,0.55]
[1721587145711,2.287,3477.7,3475.6,5.3432]
[1721587145712,2.287,3477.7,3476.7,2.87626]
[1721587145918,2.287,3477.7,3475.8,3.55]
[1721587145919,2.287,3477.7,3475.8,0.55]
[1721587146196,3.026,3477.6,3475.7,3.55]
[1721587146359,3.026,3477.6,3477.0,2.87604]
[1721587146559,2.592,3478.1,3477.1,2.8759]
[1721587146560,3.026,3478.0,3477.1,2.8759]
[1721587146763,19.92,3478.3,3475.7,0.55]
[1721587146764,5.313,3477.4,3475.7,0.55]
[1721587147068,5.313,3477.4,3474.7,3.0248201]
[1721587147069,3.0,3477.3,3474.8,4.8974]
[1721587147262,3.026,3477.2,3474.8,4.8974]
[1721587147464,2.287,3477.9,3477.2,2.87579]
[1721587147782,2.287,3477.9,3476.3,2.8766]
[1721587148530,0.2881,3478.4,3475.9,2.3054]
[1721587148531,2.5751,3478.4,3477.3,2.87576]
[1721587148679,19.92,3478.3,3477.3,2.87576]
[1721587148873,19.92,3478.3,3476.5,2.87645]
[1721587148874,19.92,3478.3,3476.5,2.87644]
[1721587149073,19.92,3478.3,3477.4,2.8757]
[1721587149499,19.92,3478.3,3477.1,2.87593]
[1721587149500,3.026,3478.2,3477.1,2.87593]
[1721587149816,3.026,3478.2,3475.8,8.46903]
[1721587149817,5.618,3478.0,3475.8,3.0]
[1721587150028,3.026,3477.8,3476.5,2.87645]
[1721587150336,22.92,3477.9,3475.6,2.87717]
[1721587150337,3.026,3477.4,3475.6,2.87717]
[1721587150481,2.592,3477.5,3475.6,2.87717]
[1721587150482,3.026,3477.2,3475.6,2.87717]
[1721587150671,3.0,3477.3,3476.2,2.87669]
[1721587150672,22.946,3477.1,3476.2,2.87669]
[1721587150988,3.026,3476.9,3476.2,2.87669]
[1721587151192,3.026,3476.9,3475.9,2.87693]
[1721587151193,3.026,3476.9,3475.3,5.18282]
[1721587151511,19.92,3477.1,3477.0,2.87604]
[1721587151676,17.04396,3477.7,3476.8,2.8762]
[1721587151873,3.0,3477.6,3476.5,2.87638]
[1721587152131,3.0,3477.6,3476.4,2.87653]
[1721587152280,3.0,3477.6,3475.5,5.87725]
[1721587152281,3.026,3477.5,3475.5,5.87725]
[1721587152481,17.04396,3477.4,3477.0,2.87604]
[1721587152676,2.287,3477.9,3477.0,2.87597]
[1721587152677,17.04396,3477.3,3477.0,2.87597]
[1721587153005,17.04396,3477.3,3476.4,2.87652]
[1721587153326,17.04396,3477.3,3477.2,2.87587]
[1721587153475,17.04396,3477.3,3476.1,2.87677]
[1721587153684,17.04396,3477.2,3476.8,2.87612]
[1721587153906,17.04396,3477.2,3476.2,0.55]
[1721587153907,17.04396,3477.1,3475.6,3.0]
[1721587154148,17.04396,3477.0,3476.9,2.87612]
[1721587154333,17.04396,3477.0,3476.9,5.75224]
[1721587155096,17.04396,3477.0,3476.9,9.491212]
[1721587155543,17.04396,3477.0,3476.9,2.87612]
[1721587155898,17.04396,3477.0,3476.9,5.75224]
[1721587157131,17.04396,3477.0,3476.9,6.30224]
[1721587157340,17.04396,3477.0,3476.9,9.17836]
[1721587158399,17.04396,3477.0,3476.9,12.17836]
[1721587158596,17.04396,3477.0,3476.9,16.559932]
[1721587158847,17.04396,3477.0,3476.9,13.683812]
[1721587159317,17.04396,3477.0,3476.9,11.62836]
[1721587159704,17.04396,3477.0,3476.9,12.17836]
[1721587160008,17.04396,3477.0,3476.9,5.75224]
[1721587160426,17.04396,3477.0,3476.9,8.62836]
[1721587160614,17.04396,3477.0,3476.9,9.17836]
[1721587161034,17.04396,3477.0,3476.9,6.30224]
[1721587161619,17.04396,3477.0,3476.9,5.75224]
[1721587161910,17.04396,3477.0,3476.9,2.87612]
[1721587162808,17.04396,3477.0,3476.7,2.87628]
[1721587163325,20.14186793,3476.9,3475.9,2.87694]
[1721587163552,3.026,3476.7,3475.1,2.4995]
[1721587163845,20.06996,3476.6,3475.9,2.87687]
[1721587164047,17.04396,3476.5,3475.9,2.87687]
[1721587164356,3.026,3476.6,3474.7,0.1468901]
[1721587164357,3.026,3476.3,3475.3,2.87737]
[1721587164522,3.026,3476.3,3475.8,2.87703]
[1721587164721,3.026,3476.3,3476.0,2.87686]
[1721587164917,3.026,3476.3,3475.7,2.87708]
[1721587165231,3.09792966,3476.3,3475.7,2.87708]
[1721587165570,3.026,3476.1,3475.1,2.87759]
[1721587165854,17.04396,3476.0,3475.9,2.87695]
[1721587166011,17.04396,3476.0,3475.9,5.7539]
[1721587168196,17.04396,3476.0,3475.9,8.63085]
[1721587168882,17.04396,3476.0,3475.9,5.7539]
[1721587170158,17.04396,3476.0,3475.9,8.63085]
[1721587170381,17.04396,3476.0,3475.9,10.043935]
[1721587171911,17.04396,3476.0,3475.9,12.920885]
[1721587172114,12.72867,3477.1,3477.0,5.75208]
[1721587172811,12.72867,3477.1,3477.0,8.62812]
[1721587172973,12.72867,3477.1,3477.0,9.17812]
[1721587173354,12.72867,3477.1,3477.0,5.75208]
[1721587173559,12.72867,3477.1,3477.0,2.87604]
[1721587174007,12.72867,3477.1,3477.0,5.75208]
[1721587174175,12.72867,3477.1,3477.0,2.87604]
[1721587175008,15.75467,3477.1,3476.6,2.87633]
[1721587175313,15.75467,3477.1,3476.7,2.87627]
[1721587175469,15.75467,3477.1,3476.7,2.87628]
[1721587176271,15.75467,3477.1,3476.8,2.87619]
[1721587176672,15.75467,3477.1,3476.7,2.87628]
[1721587176993,15.75467,3477.1,3477.0,2.87604]
[1721587176994,12.72867,3477.1,3477.0,2.87604]
[1721587178067,12.72867,3477.1,3476.7,2.87624]
[1721587178268,12.72867,3477.1,3477.0,2.87604]
[1721587179345,12.72867,3477.1,3477.0,5.75208]
[1721587181364,12.72867,3477.1,3477.0,8.62812]
[1721587181526,12.72867,3477.1,3477.0,10.328555]
[1721587186269,12.72867,3477.1,3477.0,13.204595]
[1721587186477,12.72867,3477.1,3477.0,10.328555]
[1721587186684,12.72867,3477.1,3477.0,5.75208]
[1721587187050,12.72867,3477.1,3477.0,2.87604]
[1721587187278,12.72867,3477.1,3477.0,5.75208]
[1721587187586,12.72867,3477.1,3477.0,2.87604]
[1721587187790,12.72867,3477.1,3477.0,5.75208]
[1721587188453,12.72867,3477.1,3477.0,9.490932]
[1721587188641,12.72867,3477.1,3477.0,10.040932]
[1721587191846,12.72867,3477.1,3477.0,12.916972]
[1721587192065,12.72867,3477.1,3477.0,10.040932]
[1721587192262,12.72867,3477.1,3477.0,5.75208]
[1721587193772,12.72867,3477.1,3477.0,2.87604]
[1721587195087,12.72867,3477.1,3476.8,2.87617]
[1721587195291,12.72867,3477.1,3475.6,2.87717]
[1721587195504,12.72867,3477.0,3476.8,2.87615]
[1721587195791,3.63063474,3477.2,3476.8,2.87615]
[1721587195792,12.72867,3476.9,3476.8,2.87615]
[1721587197613,12.72867,3476.9,3476.8,5.75235]
[1721587197809,12.72867,3476.9,3476.8,2.87615]
[1721587199662,12.72867,3476.9,3476.6,2.87635]
[1721587199862,12.72867,3476.9,3476.4,2.87652]
[1721587200186,16.57143718,3476.8,3476.1,2.8767]
[1721587200407,12.80058996,3476.7,3476.1,2.8767]
[1721587200623,12.80058996,3476.7,3475.3,2.87741]
[1721587200624,0.1402282,3476.6,3476.2,2.87669]
[1721587200783,13.4002247,3476.7,3476.2,2.87669]
[1721587200784,13.32830474,3476.7,3476.2,2.87669]
[1721587201117,0.81177326,3476.6,3476.1,2.87676]
[1721587201319,0.81177326,3476.6,3476.5,2.87645]
[1721587201320,0.59963474,3476.6,3476.5,2.87645]
[1721587201619,12.72867,3476.7,3476.6,5.75274]
[1721587202010,12.72867,3476.7,3476.6,2.87637]
[1721587202339,13.5175409,3476.7,3475.6,5.87718]
[1721587202538,12.72867,3476.7,3476.3,2.87661]
[1721587202816,12.72867,3476.7,3475.2,3.0]
[1721587202817,12.72867,3476.7,3475.7,2.87711]
[1721587203030,12.72867,3476.7,3476.4,2.87647]
[1721587203396,12.72867,3476.7,3475.2,5.87748]
[1721587203397,12.72867,3476.7,3476.2,2.87669]
[1721587203576,12.72867,3476.7,3474.9,2.87777]
[1721587203577,0.07191848,3476.6,3475.7,2.87711]
[1721587203784,0.59963474,3476.5,3475.8,2.87701]
[1721587204022,0.81177249,3476.4,3475.8,2.87701]
[1721587204221,0.81177249,3476.4,3475.0,2.4601]
[1721587204222,12.72867,3476.3,3475.0,2.4601]
[1721587204429,12.72867,3476.2,3476.1,2.87677]
[1721587205107,12.72867,3476.2,3475.0,2.4601]
[1721587205314,12.72867,3476.1,3475.9,2.87691]
[1721587205628,12.72867,3476.0,3475.9,2.87691]
[1721587206317,12.72867,3476.0,3475.9,5.75386]
[1721587206818,12.72867,3476.0,3475.9,2.87691]
[1721587207820,12.72867,3476.0,3474.7,0.1468901]
[1721587207983,12.86897442,3475.9,3474.7,0.54237166]
[1721587208205,12.86897442,3475.9,3475.3,2.87737]
[1721587208206,12.72867,3475.9,3475.3,2.87737]
[1721587208415,12.72867,3475.9,3474.9,2.87775]
[1721587208618,12.72867,3475.9,3475.7,2.87709]
[1721587208834,12.72867,3475.8,3475.7,6.26970814]
[1721587209038,12.72867,3475.8,3475.7,9.14681814]
[1721587209498,12.72867,3475.8,3475.7,6.81970814]
[1721587210138,12.72867,3475.8,3475.7,9.69681814]
[1721587210342,12.72867,3475.8,3475.7,6.81970814]
[1721587210904,12.72867,3475.8,3475.7,6.3042]
[1721587211908,12.72867,3475.8,3475.7,2.87709]
[1721587212411,12.72867,3475.8,3475.7,6.3042]
[1721587213314,12.72867,3475.8,3475.7,11.64141]
[1721587213728,12.72867,3475.8,3475.7,8.7643]
[1721587213930,12.72867,3475.8,3475.7,9.928442]
[1721587214132,12.72867,3475.8,3475.7,12.805552]
[1721587214719,5.53607,3475.8,3475.7,12.805552]
[1721587214927,11.04186948,3477.4,3476.9,2.87606]
[1721587214928,0.59963474,3477.3,3476.9,2.87606]
[1721587215223,0.59963474,3477.4,3476.9,2.87606]
[1721587215420,0.86947037,3477.4,3476.6,2.8763]
[1721587215643,0.13999993,3477.3,3476.0,2.87686]
[1721587215963,0.13999993,3477.3,3475.7,4.174242]
[1721587215964,19.92,3477.2,3476.4,2.87651]
[1721587216274,0.07190413,3477.1,3476.1,2.87674]
[1721587216409,2.3626,3477.0,3475.6,2.87715]
[1721587216613,2.3626,3477.0,3475.8,2.87702]
[1721587216614,0.59963474,3476.7,3475.8,2.87702]
[1721587216893,0.73979327,3476.6,3475.5,2.87722]
[1721587217016,20.51963474,3476.5,3475.6,2.87717]
[1721587217215,20.51963474,3476.5,3475.8,2.87703]
[1721587217459,20.51963474,3476.5,3475.6,2.87718]
[1721587218130,19.92,3476.5,3475.6,2.87718]
[1721587218360,20.51963474,3476.5,3475.6,2.87718]
[1721587218665,20.51963474,3476.5,3475.1,2.4601]
[1721587218666,19.92,3476.5,3475.7,2.87707]
[1721587218870,19.92,3476.5,3476.4,2.87653]
[1721587219171,19.92,3476.9,3476.4,3.42653]
[1721587219516,19.92,3476.9,3476.4,0.55]
[1721587219718,19.92,3476.9,3475.8,0.287707]
[1721587219719,19.92,3476.9,3475.9,2.87689]
[1721587219916,19.92,3476.9,3476.0,0.55]
[1721587220116,19.92,3476.9,3475.5,2.87721]
[1721587220117,2.3399,3476.8,3475.5,2.87721]
[1721587220460,20.65966092,3476.7,3476.0,2.87686]
[1721587220667,20.65966092,3476.7,3475.8,2.87701]
[1721587220668,0.14002618,3476.6,3475.8,2.87701]
[1721587220961,0.14002618,3476.6,3475.7,2.87711]
[1721587220962,0.73969336,3476.6,3475.9,2.87694]
[1721587221142,19.92,3476.7,3475.9,0.575405]
[1721587221143,20.51963474,3476.7,3475.9,0.575405]
[1721587221319,19.92,3476.7,3476.2,2.87669]
[1721587221527,19.92,3476.9,3476.2,2.87669]
[1721587221722,19.92,3476.9,3475.3,5.87741]
[1721587221949,19.92,3476.9,3476.2,2.87666]
[1721587222168,19.92,3477.0,3475.6,2.87719]
[1721587222364,19.92,3477.0,3475.8,2.87703]
[1721587222518,19.92,3477.0,3476.6,2.87633]
[1721587222874,19.92,3477.0,3476.7,2.87627]
[1721587223232,19.92,3477.0,3476.8,2.87615]
[1721587223439,19.92,3477.0,3476.5,2.87641]
[1721587223681,19.92,3477.0,3476.8,2.87618]
[1721587223838,0.07190211,3476.9,3475.9,2.3427]
[1721587224043,19.92,3477.0,3476.1,2.87678]
[1721587224044,20.51963474,3477.0,3476.1,2.87678]
[1721587224261,20.51963474,3477.0,3475.8,2.87701]
[1721587224262,0.13620796,3476.9,3475.8,2.87701]
[1721587224501,0.59963474,3476.7,3475.2,2.87746]
[1721587224737,0.89945211,3476.8,3475.2,2.87746]
[1721587224738,0.59963474,3476.5,3475.3,2.87741]
[1721587224979,0.80776762,3476.4,3475.4,2.87736]
[1721587225142,0.73598729,3476.3,3475.4,2.87736]
[1721587225684,0.67155966,3476.4,3475.4,2.87736]
[1721587225853,0.13633236,3476.3,3475.4,2.87736]
[1721587226039,0.67155966,3476.4,3475.4,2.87736]
[1721587226238,0.13633457,3476.3,3475.6,2.87718]
[1721587226439,0.89945211,3476.5,3475.4,2.87736]
[1721587226440,0.59963474,3476.5,3475.4,2.87736]
[1721587226684,20.51963474,3476.6,3475.4,2.87736]
[1721587226843,0.13626179,3476.5,3475.4,2.87736]
[1721587227185,20.51963474,3476.6,3475.4,2.87736]
[1721587227541,19.92,3476.6,3475.5,0.55]
[1721587227748,19.92,3476.6,3476.1,2.87676]
[1721587228077,19.92,3476.8,3475.7,2.87707]
[1721587228287,19.92,3476.8,3475.8,0.55]
[1721587228454,19.92,3476.8,3476.2,2.87669]
[1721587228779,19.92,3476.8,3476.3,2.87661]
[1721587229138,19.92,3476.8,3476.4,2.87645]
[1721587230379,19.92,3476.8,3476.5,2.87642]
[1721587230577,19.92,3476.8,3476.4,2.87645]
[1721587230998,20.51963474,3477.2,3476.4,2.87645]
[1721587231156,19.92,3477.2,3476.4,2.87645]
[1721587231563,19.92,3477.2,3476.0,2.3427]
[1721587231564,19.92,3477.2,3476.2,2.8767]
[1721587231798,0.73581516,3477.1,3476.3,0.55]
[1721587232014,0.73581516,3477.1,3475.4,2.87736]
[1721587232015,0.59963474,3476.7,3475.4,2.87736]
[1721587232159,0.59963474,3476.7,3475.1,2.87759]
[1721587232160,20.59155855,3476.6,3475.2,2.87752]
[1721587232468,20.59155855,3476.6,3475.1,2.87759]
[1721587232469,0.59963474,3476.3,3475.1,2.87759]
[1721587232667,0.59963474,3476.0,3474.9,2.87777]
[1721587232868,0.59963474,3475.8,3474.7,0.1468901]
[1721587233185,0.59963474,3475.2,3474.7,0.1468901]
[1721587233391,19.99195095,3475.1,3474.7,0.1468901]
[1721587233695,20.72776611,3475.1,3474.7,0.1468901]
[1721587233870,0.59963474,3474.9,3474.7,0.1468901]
[1721587234072,0.67159292,3474.9,3474.7,0.1468901]
[1721587234256,0.07195818,3474.9,3474.7,0.1468901]
[1721587234464,0.67159292,3474.9,3474.7,0.1468901]
[1721587234657,20.01931949,3474.8,3474.7,0.1468901]
[1721587234864,23.01931949,3474.8,3474.7,0.1468901]
[1721587235062,29.1365316,3474.8,3474.7,0.1468901]
[1721587235359,25.35921949,3474.8,3474.7,0.1468901]
[1721587235581,25.96052697,3474.8,3474.7,0.1468901]
[1721587235955,26.2586716,3474.8,3474.7,0.1468901]
[1721587236156,26.2586716,3474.8,3473.0,0.45128698]
[1721587236157,3.031,3474.4,3473.0,0.45128698]
[1721587236373,2.87838,3474.2,3473.0,0.45128698]
[1721587236593,2.95036168,3474.2,3473.0,0.45128698]
[1721587236799,2.95036168,3474.2,3472.8,2.87951]
[1721587236800,3.09936959,3474.1,3472.8,2.87951]
[1721587237107,3.09936959,3474.1,3472.4,2.87982]
[1721587237108,0.17136503,3474.0,3472.6,2.87968]
[1721587237402,0.07198168,3474.0,3472.8,2.87951]
[1721587237570,3.07198376,3474.1,3472.8,2.87951]
[1721587238095,3.07198376,3474.1,3472.9,2.87943]
[1721587238318,3.07198376,3474.1,3472.2,2.3427]
[1721587238596,3.07198375,3474.1,3472.3,0.55]
[1721587238802,6.10298375,3474.1,3472.5,0.30224065]
[1721587239010,6.10298375,3474.1,3472.5,2.8914815]
[1721587239011,8.24943,3474.0,3472.5,2.8914815]
[1721587239298,8.24943,3474.0,3472.5,0.0117915]
[1721587239299,6.10298692,3473.9,3472.5,0.0117915]
[1721587239638,11.57759692,3473.9,3472.5,0.0117915]
[1721587239812,3.031,3473.7,3472.5,0.0117915]
[1721587240005,6.10299601,3473.6,3472.5,0.0117915]
[1721587240202,3.031,3473.3,3472.5,0.0117915]
[1721587240528,3.0,3473.2,3472.5,0.0117915]
[1721587241006,3.0,3473.5,3472.5,0.0117915]
[1721587241340,0.3,3473.4,3472.5,0.0117915]
[1721587241493,2.87888,3473.6,3472.5,0.0117915]
[1721587241685,3.0,3473.8,3472.5,0.0117915]
[1721587241686,3.031,3473.4,3472.5,0.0117915]
[1721587241905,5.511,3473.2,3472.5,0.0117915]
[1721587242413,5.88322877,3473.2,3472.5,0.0117915]
[1721587242650,6.031,3473.1,3472.5,0.0117915]
[1721587243804,19.92,3473.0,3472.5,0.0117915]
[1721587244831,19.92,3473.0,3472.9,5.75886]
[1721587245047,19.92,3473.0,3472.9,6.30886]
[1721587245189,2.48,3474.7,3472.9,6.30886]
[1721587245190,19.92,3474.0,3472.9,0.55]
[1721587245533,19.92,3474.0,3472.7,2.596]
[1721587245534,19.92,3474.6,3473.5,2.3222]
[1721587245690,19.92,3474.6,3473.7,2.87877]
[1721587245906,0.07196329,3474.5,3473.7,2.87877]
[1721587246110,0.07196329,3474.5,3473.6,0.23222]
[1721587246462,19.92,3474.7,3473.0,2.87935]
[1721587246611,15.006,3475.3,3472.9,2.3222]
[1721587246612,3.031,3475.0,3473.9,2.87858]
[1721587246809,22.951,3474.9,3473.4,2.87899]
[1721587247008,0.07196863,3474.8,3473.5,2.87891]
[1721587247317,22.951,3474.9,3473.1,0.55]